{"text_format":"1","workbook":"xlsx","n_sheets":5,"sheets":["Invultemplate","Beoordelingsformulier","Financiele gegevens","Tekstblokken brief","Bronvelden"],"not_rendered":{"charts":0,"images":0,"macros":1,"external_links":0,"defined_names":3,"comments":2,"pivot_tables":0},"unopened":[],"bounds":{"document_bytes":16777216,"sheet_cells":100000,"rows_first":2000,"rows_last":500,"rows_between":2000,"halvings":0,"cell_chars":16384,"cell_head_chars":4096},"cells_cut":0,"cells_raw":0,"read":"whole","date_system":"1900"}

{"sheet":"Invultemplate","index":0,"n_rows":131,"n_cols":18,"rows_kept":131,"cut":false,"hidden":false,"merged":[[4,3,4,17],[5,3,5,17],[6,3,6,17],[72,8,73,8],[72,10,73,10],[72,4,73,4],[72,6,73,6],[72,14,72,17]]}
[]
[null,null,"Exceltemplate Maatwerkregeling Agroprogramma"]
[null,null,"Versie maart 2025"]
[]
[null,null,"Bedrijfsnaam"]
[null,null,"Telefoonnummer"]
[null,null,"E-mailadres"]
[]
[null,null,"Het door u ingevulde Exceltemplate Maatwerkregeling geeft inzicht in uw investeringsproject en de financiering daarvan."]
[null,null,"Gebruik het handboek bij het invullen van deze Exceltemplate Maatwerkregeling"]
[null,null,"Alle bedragen exclusief BTW en afgerond op hele euro's"]
[]
[]
[]
[null,1,"Investeringsplan"]
[null,null,"Investeringen",null,"Totaal",null,"Wonen",null,"Bedrijf",null,"Toelichting"]
[null,null,"Advieskosten (indien van toepassing)",null,{"$f":"SUM(G17+I17)","v":0}]
[null,null,null,null,{"$f":"SUM(G18+I18)","v":0}]
[null,null,null,null,0]
[null,null,null,null,0]
[null,null,null,null,0]
[null,null,null,null,0]
[null,null,null,null,0]
[null,null,null,null,0]
[null,null,null,null,0]
[null,null,null,null,0]
[null,null,null,null,0]
[null,null,"Totale investering",null,{"$f":"SUM(E17:E27)","v":0},null,{"$f":"SUM(G17:G27)","v":0},null,{"$f":"SUM(I17:I27)","v":0}]
[]
[null,null,"Toelichting bij 1"]
[null,null,"- Vermeld in de kolom \"Toelichting\" de naam van het document wat u bijvoegd"]
[null,null,"- In de kolom 'Investeringsproject'omschrijft u de onderdelen van uw investeringsproject."]
[null,null,"- Omdat alleen voor bedrijfsmatige investeringen subsidie kan worden verstrekt, splitst u de realisatiekosten uit in 'wonen' (als uw investeringsproject ook een woonhuis omvat) en 'bedrijf'."]
[null,null,"- De kolom 'Totaal' rekent zichzelf uit. "]
[null,null,"- In de kolom 'Toelichting' geeft u aan waarop u de geraamde realisatiekosten baseert. Bijvoorbeeld op een kostenraming of offerte. Op het aanvraagformulier is vermeld welke documenten u moet indienen."]
[]
[]
[]
[null,2,"Financieringsplan",null,"Totaal",null,"Wonen",null,"Bedrijf",null,"Toelichting"]
[null,null,"Eigen geld",null,{"$f":"SUM(G40+I40)","v":0}]
[null,null,"IMG schadeuitkering",null,{"$f":"SUM(G41+I41)","v":0}]
[null,null,"IMG mestkelder schadeuitkering",null,0]
[null,null,"NCG versterkingsbudget",null,0]
[null,null,"NCG schade door versterken",null,0]
[null,null,"Banklening",null,0]
[null,null,"Leasing",null,0]
[null,null,"Familielening",null,0]
[null,null,"Subsidie overig",null,0]
[null,null,"Opbrengst desinvestering (bijvoorbeeld: inruil)",null,0]
[null,null,"Maatwerksubsidie Agroprogramma",null,0]
[null,null,"Overig",null,0]
[null,null,"Totale financiering",null,{"$f":"SUM(E40:E51)","v":0},null,{"$f":"SUM(G40:G51)","v":0},null,{"$f":"SUM(I40:I51)","v":0}]
[]
[null,null,"Toelichting bij 2"]
[null,null,"- Check in het aanvraagformulier welke informatie of documenten u moet indienen in verband met de financiering van uw project. "]
[null,null,"- Opbrengst desinvestering (bijvoorbeeld: inruil): Bijvoorbeeld: verkoop van gedemonteerde onderdelen, inruil van machines e.d."]
[null,null,"- Maatwerksubsidie Agroprogramma: Hier geeft u aan, welk subsidiebedrag u verwacht nodig te hebben."]
[null,null,"LET OP! De financiering moet dekkend zijn voor de totale financiering."]
[]
[]
[]
[null,3,"Financieringsbalans",null,"Totaal",null,"Wonen",null,"Bedrijf"]
[null,null,"Totale investering",null,{"$f":"SUM(G63+I63)","v":0},null,{"$f":"G28","v":0},null,{"$f":"I28","v":0}]
[null,null,"Totale financiering",null,{"$f":"SUM(G64+I64)","v":0},null,{"$f":"G52","v":0},null,{"$f":"I52","v":0}]
[null,null,"Overschot/tekort(-)",null,{"$f":"SUM(E64-E63)","v":0},null,{"$f":"SUM(G64-G63)","v":0},null,{"$f":"SUM(I64-I63)","v":0},null,{"$f":"IF(I65<0,\"De investering is niet volledig gedekt door de financiering\",IF(I65=0,\"\",\"Er is een overschot in financiering\"))","v":""}]
[]
[null,null,"Toelichting bij 3"]
[null,null,"Deze tabel vult zichzelf op basis van de gegevens uit de tabellen 1 en 2"]
[]
[]
[]
[null,4,"Subsidiabele kosten",null,null,null,null,null,null,null,null,null,"Verantwoording"]
[null,null,"Investering",null,"Investerings-bedrag",null,"Subsidiabele investering",null,"Maximaal subsidie %",null,"Subsidiabel bedrag",null,"Tabel ","Kolom 1","Kolom 2"]
[null,null,null,null,null,null,null,null,null,null,null,null,"(A/B)","Voorwaarde","Voorwaarde 1","Voorwaarde 2","Voorwaarde 3","Voorwaarde 4"]
[null,null,"Advieskosten (indien van toepassing) ",null,{"$f":"I17","v":0},null,{"$f":"E75","v":0},null,0.05,null,{"$f":"MIN(SUM(G86*0.05),G75)","v":0},null,"-","-","-","-","-","-"]
[null,null,{"$f":"C18","v":0},null,0,null,{"$f":"E76","v":0},null,0.65,null,{"$f":"SUM(G76*I76)","v":0},null,"-","-","-","-","-","-"]
[null,null,0,null,0,null,0,null,0.65,null,0,null,"-","-","-","-","-","-"]
[null,null,0,null,0,null,0,null,0.65,null,0,null,"-","-","-","-","-","-"]
[null,null,0,null,0,null,0,null,0.65,null,0,null,"-","-","-","-","-","-"]
[null,null,0,null,0,null,0,null,0.65,null,0,null,"-","-","-","-","-","-"]
[null,null,0,null,0,null,0,null,0.65,null,0,null,"-","-","-","-","-","-"]
[null,null,0,null,0,null,0,null,0.65,null,0,null,"-","-","-","-","-","-"]
[null,null,0,null,0,null,0,null,0.65,null,0,null,"-","-","-","-","-","-"]
[null,null,0,null,0,null,0,null,0.65,null,0,null,"-","-","-","-","-","-"]
[null,null,0,null,0,null,0,null,0.65,null,0,null,"-","-","-","-","-","-"]
[null,null,null,null,{"$f":"SUM(E75:E85)","v":0},null,{"$f":"SUM(G75:G85)","v":0},null,null,null,{"$f":"SUM(K75:K85)","v":0}]
[]
[null,null,"Toelichting bij 4"]
[null,null,"Subsidieabele kosten"]
[null,null,"- De velden in de kolom 'Investering' worden automatisch gevuld vanuit de tabellen 1 en 2"]
[null,null,"- In artikel 6, lid 2 van de Maatwerkregeling staat welke kosten niet subsidiabel zijn. Raadpleeg ook het handboek.   "]
[null,null,"- Maximaal subsidie %: Als de kosten niet subsidiabel zijn, vult u hier '0' in."]
[null,null,"- Niet subsidiabel zijn posten zoals: investeringen in woonhuis, leges etc. (zie voor meer niet subsidiabele kosten het handboek)"]
[null,null,"- Let op: advieskosten zijn subsidiabel, tot maximaal 5 % van het aangevraagde subsidiebedrag. Zie artikel 6 lid 2 onder h van de Maatwerkregeling."]
[null,null,"Verantwoording"]
[null,null,"- In de velden verantwoording moet u aangeven of u voldoet aan de voorwaarden die in Bijlage 1 van de Maatwerkregeling aan investeringen worden gesteld. Deze bijlage bevat twee tabellen."]
[null,null,"- Tabel A bevat voorwaarden waaraan investeringen in bedrijfsgebouwen, machines, installaties, perceelsverharding en ontsluitingsvoorzieningen moeten voldoen."]
[null,null,"- Tabel B bevat voorwaarden waaraan investeringen in kapitaalgoederen voor de productie van biobrandstoffen en energie uit hernieuwbare bronnen moeten voldoen."]
[null,null,"Invullen"]
[null,null,"- Tabel  A of B : kies per investering de juiste tabel ( investering valt onder tabel A of B)"]
[null,null,"- Kolom 1: Hier selecteert u het soort investering wat u doet."]
[null,null,"- Kolom 2: Hier selecteert u het effect van de investering die u doet."]
[null,null,"Let op: "]
[null,null,"- Investeringen die onder tabel A vallen moeten aan minimaal één voorwaarde voldoen. "]
[null,null,"- Investeringen die onder Tabel B vallen moeten aan alle vier de genoemde voorwaarden voldoen. U kunt daarvoor de verschillende voorwaarden in de kolommen selecteren."]
[]
[]
[]
[null,5,"Staffeling maximaal toe te kennen subsidiebedrag"]
[null,null,null,null,"Staffeling",null,"Van toepassing",null,"Kosten",null,"Maximale subsidie",null,"Toelichting"]
[null,null,"Basisbedrag subsidie",null,200000,null,"ja",null,null,null,200000]
[null,null,"Schade aan mest-, koel- of melkkelder",null,100000,null,"Nee",null,null,null,{"$f":"IF(G112=\"ja\",100000, )","v":0}]
[null,null,"Karakteristiek/monumentaal/beeldbepalend",null,50000,null,"Nee",null,null,null,{"$f":"IF(G113=\"ja\",50000,0)","v":0},"Let op: gaat alleen om bedrijfsgebouw, niet zijnde woning!"]
[null,null,"Funderingsproblematiek",null,50000,null,"Nee",null,null,null,{"$f":"IF(G114=\"ja\",50000,0)","v":0},"Let op: gaat alleen om bedrijfsgebouw, niet zijnde woning!"]
[null,null,"Duurzaamheid en dierwelzijn *)",null,40000,null,"Nee",null,null,null,0,"Vul het offertebedrag in, tot maximaal € 40.000"]
[null,null,"Asbest **)",null,40000,null,"Nee",null,null,null,0,"Vul het offertebedrag in, tot maximaal € 40.000"]
[null,null,null,null,null,null,null,null,null,null,{"$f":"SUM(K111:K116)","v":200000}]
[]
[null,null,"Toelichting bij 5"]
[null,null,"Met deze tabel kunt u het voor uw aanvraag maximaal toe te kennen subsidiebedrag berekenen. "]
[null,null,"Dit doet u door in de kolom 'Van toepassing'met 'ja'of 'nee' aan te geven, welke situatie op u van toepassing is."]
[]
[null,null,"*) de hoogte van deze staffel is gelijk aan de daadwerkelijke kosten voor deze investering, tot maximaal € 40.000"]
[null,null,"**) de hoogte van deze staffel is gelijk aan de daadwerkelijke kosten voor deze investering, tot maximaal € 40.000"]
[]
[]
[]
[null,6,"Het maximale subsidiebedrag is:",null,{"$f":"IF(K86<K117,K86,K117)","v":0}]
[]
[null,null,"Toelichting bij 6"]
[null,null,"Het uiteindelijk toe te kennen subsidiebedrag is 65% van de subsidiabele kosten van uw investeringsproject tot maximaal het bij 5 uitgerekende bedrag"]

{"sheet":"Beoordelingsformulier","index":1,"n_rows":147,"n_cols":10,"rows_kept":147,"cut":false,"hidden":true,"merged":[[104,4,104,7],[121,4,121,9],[122,4,122,9],[128,8,128,9],[129,8,129,9],[147,4,147,9],[146,4,146,9],[138,4,138,9],[139,4,139,9],[140,4,140,9],[141,4,141,9],[85,7,85,8],[120,4,120,9],[93,4,93,5],[94,4,94,5],[95,4,95,5],[96,4,96,5],[97,4,97,5],[98,4,98,5],[99,4,99,5],[100,4,100,5],[109,4,109,7],[108,4,108,7],[107,4,107,7],[89,7,89,8],[106,4,106,7],[105,4,105,7],[88,4,88,6],[93,2,93,3],[85,4,85,6],[63,5,63,6],[78,4,78,6],[6,7,6,8],[7,7,7,8],[9,7,9,8],[10,7,10,8],[11,7,11,8],[13,2,13,8],[15,7,15,8],[14,7,14,8],[55,5,55,6],[56,5,56,6],[45,5,45,6],[46,5,46,6],[47,5,47,6],[49,5,49,6],[41,3,41,6],[50,5,50,6],[35,3,35,6],[36,3,36,6],[37,3,37,6],[38,3,38,6],[39,3,39,6],[133,4,133,8],[123,8,123,9],[124,8,124,9],[125,8,125,9],[126,8,126,9],[127,8,127,9],[130,8,130,9],[131,8,131,9],[132,8,132,9],[87,7,87,8],[82,7,82,8],[83,7,83,8],[84,7,84,8],[51,5,51,6],[68,5,68,6],[65,5,65,6],[66,5,66,6],[72,5,72,6],[69,5,69,6],[67,5,67,6],[60,5,60,6],[82,4,82,6],[57,5,57,6],[64,5,64,6],[54,5,54,6],[22,4,22,6],[23,4,23,6],[24,4,24,6],[25,4,25,6],[26,4,26,6],[90,7,90,8],[86,7,86,8],[53,2,53,4],[43,2,43,4],[44,5,44,6],[48,5,48,6],[58,5,58,6],[59,5,59,6],[86,4,86,6],[87,4,87,6],[79,4,79,6],[88,7,88,8],[89,4,89,6],[90,4,90,6],[83,4,83,6],[84,4,84,6]]}
[]
[null,null,"Beoordelingsformulier Maatwerkregeling ",null,null,null,null,"In welke categorie valt deze aanvraag?"]
[null,null,"Versie maart 2025",null,null,null,null,"Maximaal subsidiebedrag",{"$f":"Invultemplate!E128","v":0}]
[]
[null,null,"In te vullen door subsidieteam"]
[]
[null,null,"Projectnaam: ",null,null,null,null," <<naam>>"]
[null,null,"Dossiernummer: ",null,null,null,null,"<<dossiernummer>>"]
[]
[null,null,"Naam aanvrager subsidie:",null,null,null,null,{"$f":"Invultemplate!E5","v":0}]
[null,null,"Telefoonnummer:",null,null,null,null,{"$f":"Invultemplate!E6","v":0}]
[null,null,"E-mailadres:",null,null,null,null,{"$f":"Invultemplate!E7","v":0}]
[]
[null,null,"A. Ontvangst / inboeken "]
[null,null,"- Ontvangstbevestiging per mail verstuurd? (Subsidieteam)"]
[null,null,"- In KIWI gecheckt of er al eerder een verlening is geweest? (Beleid)"]
[]
[]
[null,null,"In te vullen door beleidsteam"]
[]
[null,null,"B. Prioritering "]
[null,null,"Prioriteit",null,"Omschrijving",null,null,"Verplicht","Aanwezig","Toelichting"]
[null,null,1,"IMG","Het IMG heeft u in verband met schade aan een bedrijfsgebouw een schadevergoeding toegekend. Het schadevergoedingsbesluit van het IMG staat in rechte vast. Het schadevergoedingsbesluit van het IMG staat in rechte vast.",null,null,"-","-"]
[null,null,1,"NAM","De Nederlandse Aardolie Maatschappij BV heeft u in verband met schade aan een bedrijfsgebouw een schadevergoeding toegekend. Deze toekenning staat in rechte vast. De schade is nog niet hersteld.",null,null,"-"]
[null,null,1,"TCMG","De Tijdelijke Commissie Mijnbouwschade heeft u in verband met schade aan een bedrijfsgebouw een schadevergoeding toegekend. Deze toekenning staat in rechte vast. De schade is nog niet hersteld.",null,null,"-"]
[null,null,2,"NCG/versterking","De NCG heeft besloten dat tenminste één van uw bedrijfsgebouwen versterkt moet worden. Het versterkingsbesluit staat in rechte vast. ",null,null,"-"]
[null,null,3,"9 maanden","Uw investeringsproject bestaat geheel of gedeeltelijk uit bouw of verbouw van een bedrijfsgebouw, de uitvoering hiervan start binnen negen maanden na verlening van de subsidie.",null,null,"-"]
[null,null,4,"Rollend materieel","U gaat minder dan 30 % van het aangevraagde subsidiebedrag gebruiken voor investeringen in rollend materieel.",null,null,"-"]
[]
[]
[null,null,"In te vullen door beleidsteam"]
[]
[null,null,"C. Compleetheidstoets + Inhoudelijke beoordeling",null,null,null,null,"Verplicht","Aanwezig","Inhoudelijke beoordeling"]
[]
[null,null,"Verplicht"]
[null,null,1,"- Volledig ingevuld online aanvraagformulier",null,null,null,"Ja","-"]
[null,null,2,"- Volledig ingevuld Exceltemplate Maatwerkregeling",null,null,null,"Ja","-"]
[null,null,3,"- MKB-verklaring",null,null,null,"Ja","-"]
[null,null,4,"- Verklaring niet in financiële moeilijkheden",null,null,null,"Ja","-"]
[null,null,5,"- Jaarrekening/jaarverslag (niet ouder dan 2 jaar)",null,null,null,"Ja","-"]
[null,null,6,"- Van alle onderdelen van het investeringsproject: actuele offertes of prijsopgaven (niet ouder dan 12 maanden en niet ondertekend)",null,null,null,"Ja","-"]
[null,null,7,"- KvK-nummer gecontroleerd en uittreksel gedownload en toegevoegd aan het dossier.",null,null,null,"Ja","-"]
[]
[null,null,"Bewijs van schades en/of versterking gebouwen"]
[null,null,1,"Schademelding","Heeft u voor één of meer bedrijfsgebouwen een schademelding bij het IMG gedaan?","Een kopie van de schademelding en daaropvolgende ontvangstbevestiging van het IMG",null,"-","-"]
[null,null,2,"IMG","- Als voor één of meer bedrijfsgebouwen van het IMG een schadevergoeding is ontvangen","- Kopie van het besluit van het IMG.",null,{"$f":"H23","v":"-"},{"$f":"I23","v":"-"}]
[null,null,3,"NAM","- Als van de NAM de schade aan één of meer bedrijfsgebouwen vergoed is gekregen","- Kopie van de brief of ander document waarin dat is vastgelegd.",null,{"$f":"H24","v":"-"},{"$f":"H24","v":"-"}]
[null,null,4,"TCMG","- Als u van de TCMG een schadevergoeding heeft gekregen","- Kopie van een document waarin staat of de vergoede schade inmiddels wel of niet is hersteld.",null,{"$f":"H25","v":"-"},{"$f":"H25","v":"-"}]
[null,null,5,"Hersteld","- Als met de vergoeding de schade aan de bedrijfsgebouwen hersteld IS.","- Een document waarin staat of de vergoede schade inmiddels wel of niet hersteld is."]
[null,null,6,"NCG/versterking","- Als u voor één of meer bedrijfsgebouwen een versterkingsbesluit heeft gekregen","- Een kopie van dat versterkingsbesluit.",null,{"$f":"H26","v":"-"},{"$f":"H26","v":"-"}]
[null,null,7,"Fundering","- Als u bij één of meer van uw bedrijfsgebouwen funderingsproblematiek door gaswinning heeft: ","- Een beschrijving van de funderingsproblematiek (bij voorkeur een deskundigenrapport, maar eventueel andere verklarende bouwkundige beschrijving van de funderingsschade) of een besluit van het IMG over die funderingsschade. ",null,"-","-"]
[null,null,8,"Kelder","- Als u schade aan de mestkelder, koelkelder of melkkelder heeft gemeld bij het IMG: ","- Een kopie van uw melding",null,"-","-"]
[]
[null,null,"Financiele gegevens en gegevens van de onderneming"]
[null,null,9,"Eigen geld","- Als het investeringsproject mede met eigen geld betaald wordt: ","- Bankafschriften waaruit blijkt dat uw onderneming over het benodigde eigen geld beschikt.",null,"-","-"]
[null,null,10,"Bijdrage derden","- Als het investeringsproject mede met bijdragen van derden gefinancierd wordt (bijvoorbeeld: een lening of een bijdrage van IMG of NCG):","- Kopieën van de documenten waaruit blijkt dat die bijdragen beschikbaar zijn of komen.",null,"-","-"]
[null,null,11,"Andere subsidies","- Als u voor dit investeringsproject ook andere subsidies krijgt of heeft aangevraagd: ","- Kopieën van die subsidiebeschikkingen of subsidieaanvragen.",null,"-","-"]
[null,null,12,"Negatief EV","- Als uit de aangeleverde jaarcijfers blijkt dat uw onderneming negatief eigen vermogen, een negatieve kasstroom of een negatieve marge (kasstroom minus aflossingen, vervangingsinvesteringen en privé-opnames) heeft: ","- Een meerjarenbegroting over in ieder geval de jaren waarin het investeringsproject wordt uitgevoerd en het eerste boekjaar na realisatie van het investeringsproject. ",null,"-","-"]
[null,null,13,"Andere onderneming \nAndere jaarrekeningen","- Als u naast uw onderneming waarvoor u nu subsidie aanvraagt ook een andere onderneming heeft (zoals: een eenmanszaak, v.o.f. of maatschap) of aandeelhouder of certificaathouder (meer dan 25 % van de aandelen of zeggenschap) in een andere onderneming bent: ","- Het meest recente jaarverslag van elk van die andere ondernemingen. ",null,"-","-"]
[null,null,14,"Andere onderneming\nMeerdere entiteiten","- Als de onderneming bestaat uit meerdere entiteiten?","- Een volledig organogram en geconsolideerde jaarrekeningen. Daarnaast de jaarrekeningen van de entiteit waarin de agrarische activiteit plaatsvindt en de overige entiteiten (persoonlijke ondernemingen dan wel BV's)",null,"-","-"]
[null,null,15,"Andere onderneming \nOrganogram","- Als ondernemer zeggenschap heeft in meerdere ondernemingen of een belang heeft van 25% of meer","- Een organogram van alle ondernemingen waaruit de omvang van het belang of zeggenschap blijkt in procenten en de eigenaar van alle ondernemingen.",null,"-","-"]
[]
[null,null,"Investeringsproject"]
[null,null,16,"9 maanden","- Als uw investeringsproject bestaat uit bouw- of verbouw van één of meerdere bedrijfsgebouwen en u daarmee binnen negen maanden na verlening van de aangevraagde subsidie start: ","- Een kopie van de (nog niet door u getekende) offerte van de aannemer waaruit blijkt dat binnen hoeveel maanden na subsidieverlening gestart kan worden met de (ver)bouw. Op dit moment gaan we uit van subsidieverlening in februari 2025.",null,{"$f":"H27","v":"-"},{"$f":"H27","v":"-"}]
[null,null,17,"Omgevingsvergunning","- Als het investeringsproject alleen met een omgevingsvergunning gerealiseerd kan worden:","- Een kopie van de verleende omgevingsvergunning (zonder eventuele bijlagen zoals bouwtekeningen) of een korte toelichting van de activiteiten waarvoor de omgevingsvergunning aangevraagd is of gaat worden.",null,"-","-"]
[null,null,18,"Asbest","- Als u subsidie aanvraagt voor asbestverwijdering: ","- Een (nog niet door u ondertekende) offerte van de asbestverwijderingswerkzaamheden die vermeldt welk soort en hoeveel asbesthoudend materiaal verwijderd wordt.",null,"-","-"]
[null,null,19,"Duurzaamheid","- Als u subsidie aanvraagt in verband met duurzame investeringen of investeringen in dierwelzijn (zie artikel 7 lid 2 van de Maatwerkregeling): ","- Specificatie met prijsopgave of een (nog niet door u ondertekende) offerte met specificatie van duurzame investeringen of de investeringen in dierwelzijn.",null,"-","-"]
[null,null,20,"Rollend","- Als u gaat investeren in rollend materieel: ","- Specificatie met prijsopgave of een offerte met specificatie van het rollend materieel.",null,"-","-"]
[null,null,21,"Bouw/verbouw","- Als u de subsidie gaat investeren voor bouw- of verbouw: ","- Een omschrijving van wat u gaat bouwen of verbouwen (soort bouwwerk, locatie op het perceel, afmetingen en volume, gebruikte materialen)",null,"-","-"]
[null,null,22,"Advieskosten","- Als u advieskosten maakt in verband met het investeringsproject: ","- Een offerte of, als er geen offerte is, een specificatie van het soort en de hoogte van de advieskosten.",null,"-","-"]
[]
[null,null,"Machtiging"]
[null,null,23,"Machtiging","- Als u de aanvraag door iemand anders – bijvoorbeeld een adviesbureau – laat indienen: ","- Een ingevuld en ondertekend machtigingsformulier.",null,"-","-"]
[]
[]
[]
[null,null,"Inhoudelijke beoordeling door beleidsteam"]
[null,null,"D.1. Doelgroep ",null,null,null,null,"Aangevinkt","Aanwezig","Toelichting"]
[null,null,"A","6 november","De onderneming heeft een bedrijfsgebouw dat op of voor 6 november 2020 deel uitmaakt van het versterkingsprogramma."]
[null,null,"B","Aardbevingsgebied + schademelding","De agrarische onderneming is geheel of merendeels gevestigd in het aardbevingsgebied en de ondernemer heeft minimaal één schademelding voor fysieke schade gedaan als bedoeld in artikel 2 van de Tijdelijke wet Groningen en door het Instituut is aanmerkt als 'speciaal dossier' of 'melding met agro kenmerk'."]
[]
[null,null,"D.2. Subsidiabele kosten (o.b.v. de Exceltemplate) ",null,null,null,null,null,null,"Toelichting"]
[null,null,1,null,"Is de financieringsbalans sluitend?"]
[null,null,2,null,"Is het % subsidiabele kosten juist ingevuld?"]
[null,null,3,null,"Zijn in tabel 4 de subsidiabele kosten volledig en juist ingevuld?"]
[null,null,4,null,"Is bij punt 4 de juiste tabel aangevinkt?"]
[null,null,5,null,"Is bij punt 4 kolom 1 voor de verantwoording per investering volledig en juist ingevuld?"]
[null,null,6,null,"Is bij punt 4 kolom 2 voor de verantwoording per investering volledig en juist ingevuld?"]
[null,null,7,null,"Is er een samenhang tussen de investeringen?"]
[null,null,8,null,"Zijn de investeringen te identificeren? (Aan de hand van specifieke eigenschappen van de investering, bijv. locatie, inhoud, oppervlakte bouwwerk.)"]
[null,null,9,null,"Indien van toepassing: welke kosten zijn niet subsidiabel en waarom (gelet op de voorschriften en toepasselijke wet- en regelgeving)?"]
[]
[null,null,"D.3. Staffeling (Voor bijlage 1 in de beschikking)",null,null,null,null,null,null,"Toelichting"]
[null,null,null,null,"Onderdeel staffel",null,"Bedrag","Op uw aanvraag van toepassing?","Maximaal beschikbaar subsidiebedrag"]
[null,null,1,null,"Basisbedrag",null,200000,"Ja. ",200000]
[null,null,2,null,"Bij IMG gemelde schade aan mestkelder, koelkelder of melkkelder",null,{"$f":"IF(H96=\"Ja\",100000,0)","v":0},{"$f":"Invultemplate!G112","v":"Nee"},{"$f":"Invultemplate!K112","v":0}]
[null,null,3,null,"Monumentaal of karakteristiek bedrijfsgebouw",null,{"$f":"IF(H97=\"Ja\",50000,0)","v":0},{"$f":"Invultemplate!G113","v":"Nee"},{"$f":"Invultemplate!K113","v":0}]
[null,null,4,null,"Funderingsproblematiek bij bedrijfsgebouw",null,{"$f":"IF(H98=\"Ja\",50000,0)","v":0},{"$f":"Invultemplate!G114","v":"Nee"},{"$f":"Invultemplate!K114","v":0}]
[null,null,5,null,"Investeringen in duurzaamheid of dierwelzijn",null,{"$f":"IF(H99=\"Ja\",40000,0)","v":0},{"$f":"Invultemplate!G115","v":"Nee"},{"$f":"Invultemplate!K115","v":0}]
[null,null,6,null,"Verwijdering van minimaal 100 m2 asbesthoudend plaat- of isolatiemateriaal bij bedrijfsgebouw",null,{"$f":"IF(H100=\"Ja\",40000,0)","v":0},{"$f":"Invultemplate!G116","v":"Nee"},{"$f":"Invultemplate!K116","v":0}]
[null,null,null,null,"Totaal maximaal beschikbaar",null,{"$f":"SUM(G95:G100)","v":200000},"Totaal voor deze aanvraag beschikbaar",{"$f":"SUM(I95:I100)","v":200000}]
[null,null,null,null,{"$f":"IF(I102=0,\"\",\"Let op, staffel wijkt af van exceltemplate\")","v":""},null,null,null,{"$f":"SUM(I101-Invultemplate!K117)","v":0}]
[]
[null,null,"D.4. Toekomstperspectief"]
[null,null,null,null,"Financiële analyse"]
[null,null,2,null,"Cashflow",null,null,null,{"$f":"'Financiele gegevens'!F10","v":0}]
[null,null,3,null,"Marge",null,null,null,{"$f":"'Financiele gegevens'!F16","v":0}]
[null,null,4,null,"Eigen vermogen",null,null,null,{"$f":"'Financiele gegevens'!#REF!","v":{"$error":"#REF!"}}]
[null,null,5,null,"Is er sprake van voldoende toekomstperspectief? "]
[null,null,6,null,"Indien geen toekomstperspectief o.b.v. de historische cijfers, is er vldoende toekomstperspectief o.b.v. een meerjarenberoting?"]
[]
[]
[]
[null,null,"Beoordeling "]
[]
[null,null,"Naam eerste beoordelaar"]
[null,null,"Datum"]
[]
[null,null,"Beoordeling",null,"-"]
[]
[null,null,"Toelichting"]
[]
[]
[]
[null,null,"Afwijsredenen",null,"-","Op te vragen documenten","-","Aangepaste staffel","-"]
[null,null,null,null,"-",null,"-"]
[null,null,null,null,"-",null,"-"]
[null,null,null,null,"-",null,"-"]
[null,null,null,null,"-",null,"-"]
[null,null,null,null,"-",null,"-"]
[null,null,null,null,"-",null,"-"]
[null,null,null,null,"-",null,"-"]
[null,null,null,null,"(anders)",null,"(anders)",null,"(anders)"]
[]
[null,null,"Naam tweede beoordelaar"]
[null,null,"Datum"]
[]
[null,null,"Beoordeling",null,"-"]
[null,null,"Toelichting"]
[]
[]
[]
[]
[null,null,"Eindoordeel Beleid",null,"-"]
[null,null,"Datum"]
[]
[null,null,"Toelichting",null,"[indien nodig kan hier een toelichting worden gegeven]"]

{"sheet":"Financiele gegevens","index":2,"n_rows":22,"n_cols":6,"rows_kept":22,"cut":false,"hidden":true,"merged":[]}
[]
[]
[null,"D.4. Financiele gegevens",null,"Boekjaar 1","Boekjaar 2","Gemiddelde"]
[null,null,"Jaar"]
[null,1,"Balanstotaal",null,null,{"$f":"AVERAGE(D5:E5)","v":{"$error":"#DIV/0!"}}]
[null,2,"Eigenvermogen",null,null,{"$error":"#DIV/0!"}]
[null,null,"Eigen vermogen (%)",{"$f":"SUM(D6/D5)","v":{"$error":"#DIV/0!"}},{"$f":"SUM(E6/E5)","v":{"$error":"#DIV/0!"}},{"$f":"AVERAGE(D7:E7)","v":{"$error":"#DIV/0!"}}]
[null,3,"Winst",null,null,{"$error":"#DIV/0!"}]
[null,4,"Afschrijvingen",null,null,{"$error":"#DIV/0!"}]
[null,null,"Cashflow",{"$f":"SUM(D8:D9)","v":0},{"$f":"SUM(E8:E9)","v":0},0]
[null,5,"Prive-uitgaven",null,null,{"$error":"#DIV/0!"}]
[null,6,"Belastingen",null,null,{"$error":"#DIV/0!"}]
[null,null,"Reserveringscapaciteit",{"$f":"SUM(D10-D11-D12)","v":0},{"$f":"SUM(E10-E11-E12)","v":0},0]
[null,7,"Aflossingen",null,null,{"$error":"#DIV/0!"}]
[null,8,"Vervangingsinvesteringen",null,null,{"$error":"#DIV/0!"}]
[null,null,"Marge",{"$f":"SUM(D13-D14-D15)","v":0},{"$f":"SUM(E13-E14-E15)","v":0},0]
[]
[null,"Toelichting"]
[null,"Prive-uitgaven (5)","Als uit de cijfers niet blijkt wat de prive-uitgaven zijn, vullen we 35k in."]
[null,"Belastingen (6)","Alleen van toepassing bij BV's"]
[null,"Aflossingen (7)","Als uit de cijfers niet duidelijk blijkt wat de aflossingen zijn, vullen we hier de afschrijvingen in."]
[null,"Vervangingsinvesteringen (8)","Afhankelijk van de omvang van de onderneming hanteren we een bedrag van 15k tot 25k"]

{"sheet":"Tekstblokken brief","index":3,"n_rows":28,"n_cols":3,"rows_kept":28,"cut":false,"hidden":true,"merged":[]}
[]
[null,"Opvraagbrief"]
[null,"Ontbrekend document","Tekstblok"]
[null,{"$f":"Beoordelingsformulier!G125","v":"-"},{"$f":"VLOOKUP(B4,Bronvelden!A128:M150,2,FALSE)","v":{"$error":"#N/A"}}]
[null,{"$f":"Beoordelingsformulier!G126","v":"-"},{"$f":"VLOOKUP(B5,Bronvelden!A129:M151,2,FALSE)","v":{"$error":"#N/A"}}]
[null,{"$f":"Beoordelingsformulier!G127","v":"-"},{"$f":"VLOOKUP(B6,Bronvelden!A130:M152,2,FALSE)","v":{"$error":"#N/A"}}]
[null,{"$f":"Beoordelingsformulier!G128","v":"-"},{"$f":"VLOOKUP(B7,Bronvelden!A131:M153,2,FALSE)","v":{"$error":"#N/A"}}]
[null,{"$f":"Beoordelingsformulier!G131","v":"-"},{"$f":"VLOOKUP(B8,Bronvelden!A132:M154,2,FALSE)","v":{"$error":"#N/A"}}]
[null,{"$f":"Beoordelingsformulier!G132","v":"-"},{"$f":"VLOOKUP(B9,Bronvelden!A133:M155,2,FALSE)","v":{"$error":"#N/A"}}]
[null,{"$f":"Beoordelingsformulier!G133","v":"(anders)"},{"$f":"VLOOKUP(B10,Bronvelden!A134:M156,2,FALSE)","v":{"$error":"#N/A"}}]
[]
[null,"Weigeringsbrief"]
[null,"Afwijsredenen","Tekstblok voor in de brief"]
[null,{"$f":"Beoordelingsformulier!E125","v":"-"},{"$f":"VLOOKUP(B14,Bronvelden!A108:L123,2,FALSE)","v":{"$error":"#N/A"}}]
[null,{"$f":"Beoordelingsformulier!E126","v":"-"},{"$f":"VLOOKUP(B15,Bronvelden!A108:L123,2,FALSE)","v":{"$error":"#N/A"}}]
[null,{"$f":"Beoordelingsformulier!E127","v":"-"},{"$f":"VLOOKUP(B16,Bronvelden!A109:L124,2,FALSE)","v":{"$error":"#N/A"}}]
[null,{"$f":"Beoordelingsformulier!E128","v":"-"},{"$f":"VLOOKUP(B17,Bronvelden!A110:L125,2,FALSE)","v":{"$error":"#N/A"}}]
[null,{"$f":"Beoordelingsformulier!E127","v":"-"},{"$f":"VLOOKUP(B18,Bronvelden!A109:L124,2,FALSE)","v":{"$error":"#N/A"}}]
[null,{"$f":"Beoordelingsformulier!E128","v":"-"},{"$f":"VLOOKUP(B19,Bronvelden!A110:L125,2,FALSE)","v":{"$error":"#N/A"}}]
[null,{"$f":"Beoordelingsformulier!E131","v":"-"},{"$f":"VLOOKUP(B20,Bronvelden!A111:L126,2,FALSE)","v":{"$error":"#N/A"}}]
[null,{"$f":"Beoordelingsformulier!E132","v":"-"},{"$f":"VLOOKUP(B21,Bronvelden!A112:L127,2,FALSE)","v":"-"}]
[null,{"$f":"Beoordelingsformulier!E133","v":"(anders)"},{"$f":"VLOOKUP(B22,Bronvelden!A113:L129,2,FALSE)","v":{"$error":"#N/A"}}]
[]
[null,"Verleningsbrief - aangepaste staffel"]
[null,"Aangepaste staffel","Tekstblok"]
[null,{"$f":"Beoordelingsformulier!I125","v":"-"},{"$f":"VLOOKUP(B26,Bronvelden!N119:Y120,2,FALSE)","v":{"$error":"#N/A"}}]
[null,{"$f":"Beoordelingsformulier!I126","v":0},{"$f":"VLOOKUP(B27,Bronvelden!N120:Y121,2,FALSE)","v":{"$error":"#N/A"}}]
[null,{"$f":"Beoordelingsformulier!I127","v":0},{"$f":"VLOOKUP(B28,Bronvelden!N121:Y122,2,FALSE)","v":{"$error":"#N/A"}}]

{"sheet":"Bronvelden","index":4,"n_rows":150,"n_cols":15,"rows_kept":150,"cut":false,"hidden":true,"merged":[[149,1,149,12],[133,1,133,12],[134,1,134,12],[135,1,135,12],[136,1,136,12],[137,1,137,12],[138,1,138,12],[144,1,144,12],[145,1,145,12],[146,1,146,12],[147,1,147,12],[148,1,148,12],[127,1,127,12],[128,1,128,12],[129,1,129,12],[130,1,130,12],[131,1,131,12],[132,1,132,12],[140,1,140,12],[141,1,141,12],[142,1,142,12],[143,1,143,12],[139,1,139,12],[120,1,120,11],[121,1,121,11],[122,1,122,11],[118,1,118,11],[118,14,118,24],[119,1,119,11],[119,14,119,24],[113,1,113,11],[114,1,114,11],[115,1,115,11],[116,1,116,11],[117,1,117,11],[112,1,112,11],[107,1,107,11],[108,1,108,11],[109,1,109,11],[110,1,110,11],[111,1,111,11]]}
["Gegevensbronnen (niets invullen of aanpassen)"]
[]
[]
[null,"Kostensoort investering"]
[null,null,null,null,null,null,null,null,null,null,null,"-"]
[null,"-",null,null,null,null,null,null,null,null,null,"A. Bedrijfgebouwen"]
[null,"A.1.a. (bedrijfsgebouwen) kosten bouw of verbouw",null,null,null,null,null,null,null,null,null,"A. Machines en installaties"]
[null,"A.1.a. (bedrijfsgebouwen) kosten bouwrijp maken",null,null,null,null,null,null,null,null,null,"A. Perceelsverhardingen of ontsluitingsvoorzieningen"]
[null,"A.1.a. (bedrijfsgebouwen) kosten noodzakelijke sloopwerkzaamheden",null,null,null,null,null,null,null,null,null,"B. Installaties en voorzieningen productie biobrandstoffen"]
[null,"A.1.b. (bedrijfsgebouwen) kosten machines en voorzieningen, mits noodzakelijk gelet op Bbl",null,null,null,null,null,null,null,null,null,"B. Installaties en voorzieningen productie thermische energie en elekriciteit uit hernieuwbare bronnen"]
[null,"A.1.c. (bedrijfsgebouwen)kosten landschappelijke inpassing"]
[null,"A.4.a. kosten noodzakelijke inzet architecten, ingenieurs, adviseurs"]
[null,"A.4.b. kosten noodzakelijk advies inzake ecologie, economische duurzaamheid, haalbaarheidsstudies"]
[null,"A.2.a. (machtines of installaties) kosten verwerving, leasing of huurkoop"]
[null,"A.2.b. (machtines of installaties) kosten voor noodzakelijke aanpassing gebouwen of terreinen"]
[null,"A.2.c. (machines of installaties) kosten aankoop of ontwikkeling software en verwering octrooien en licenties",null,null,null,null,null,null,null,null,null,null,null,null,"Ja"]
[null,"A.4.a. kosten noodzakelijke inzet architecten, ingenieurs, adviseurs",null,null,null,null,null,null,null,null,null,null,null,null,"Nee"]
[null,"A.4.b. kosten noodzakelijk advies inzake ecologie, economische duurzaamheid, haalbaarheidsstudies"]
[null,"A.3.a. (perceelsverhardingen of -ontsluitingen) kosten werkzaamheden realisatie / aanleg"]
[null,"A.3.b. (perceelsverhardingen of -ontsluitingen) materiaalkosten perceelsverhardingen of ontsluitingen"]
[null,"A.4.a. kosten noodzakelijke inzet architecten, ingenieurs, adviseurs"]
[null,"A.4.b. kosten noodzakelijk advies inzake ecologie, economische duurzaamheid, haalbaarheidsstudies"]
[null,"B.1.a. (biobrandstoffen) kosten verwerving, leasing of huurkoop"]
[null,"B.1.b. (biobrandstoffen) kosten noodzakelijke aanpassing gebouwen of terreinen"]
[null,"B.1.c. (biobrandstoffen) kosten aankoop of ontwikkeling software en verwerving octrooien en licenties"]
[null,"B.2.a. (thermische energie/elektriciteit) kosten verwerving, leasing of huurkoop"]
[null,"B.2.b. (thermische energie/elektriciteit) kosten noodzakelijke aanpassing gebouwen of terreinen "]
[null,"B.2.c. (thermische energie/elektriciteit) kosten aankoop of ontwikkeling software en verwerving octrooien en licenties "]
[null,"B.3.a. kosten noodzakelijke inzet architecten, ingenieurs, adviseurs"]
[null,"B.3.b. kosten noodzakelijk advies inzake ecologie, economische duurzaamheid, haalbaarheidsstudies"]
[]
[]
[]
[]
[]
[]
[]
[]
[]
[]
[]
[null,"Voorwaarden gesteld aan investeringen"]
["Tabel A","Tabel A","Investering in bedrijfsgebouwen, machines, installaties, perceelsverharding of ontsluitingsvoorzieningen"]
[null,"-"]
[null,"Kolom A.1. Verlaging van de productiekosten van aanvrager"]
[null,"Kolom A.2. Verbetering en omschakeling van de productie van aanvrager"]
[null,"Kolom A.3. Vermindering verbruik niet-biologische gewasbeschermingsmiddelen"]
[null,"Kolom A.3. Vermindering verbruik meststoffen"]
[null,"Kolom A.3. Vermindering verbruik bodemverbeteraars of nutrienten"]
[null,"Kolom A.4.a. Vermindering gebruik niet-hernieuwbare energie of water"]
[null,"Kolom A.4.b. Vermindering directe of indirecte lozing afvalwater"]
[null,"Kolom A.4.c. Vermindering emissies naar de lucht, inclusief stofemissies en geurhinder"]
[null,"Kolom A.4.d. Vermindering productie voor omwonenden waarneembaar geluid of trillingen"]
[null,"Kolom A.5. Verbetering van dierwelzijn"]
[null,"Kolom A.5. Verbetering bescherming bodem tegen risico's bodemverontreiniging"]
[null,"Kolom A.6. Vergroting van de toegevoegde waarde die aanvrager realiseert met zijn of haar landbouwproducten"]
["Tabel B","Kolom B. Biobrandstoffen: productie vindt plaats op bedrijf aanvrager","Investeringen in kapitaalgoederen voor productie van biobrandstoffen en energie uit hernieuwbare bronnen"]
[null,"Kolom B. Biobrandstoffen: investering leidt tot afname gebruik niet-hernieuwbare energie door aanvrager"]
[null,"Kolom B. Biobrandstoffen: productiecapaciteit alle installaties is niet groter dan hoeveelheid brandstoffen die aanvrager jaarlijks gemiddeld gebruikt"]
[null,"Kolom B. Biobrandstoffen: de geproduceerde biobrandstoffen worden niet op de markt verkocht"]
[null,"Kolom B. Elektriciteit/thermische energie: productie vindt plaats op bedrijf aanvrager"]
[null,"Kolom B. Elektriciteit/thermische energie: investering leidt tot afname gebruik niet-hernieuwbare energie door aanvrager"]
[null,"Kolom B. Elektriciteit/thermische energie: productiecapaciteit alle installaties is niet groter dan hoeveelheid brandstoffen die aanvrager (inclusief huishouden) jaarlijks gemiddeld gebruikt"]
[null,"Kolom B. Elektriciteit: geen verkoop aan het net of alleen binnen jaarlijkse limiet van het eigen verbruik"]
[]
[]
[]
[]
[]
[]
[]
[null,"A. Ontvangst / inboeken (door Subsidieteam)",null,null,null,null,"C. Compleetheidstoets (door Beleid)",null,null,null,"D.1. Doelgroep ",null,null,null,"D4. Toekomstperspectief"]
[null,null,null,null,null,null,null,null,null,null,null,null,null,null,"-"]
[null,null,"-",null,null,null,"-",null,null,null,"-",null,null,null,"Goed"]
[null,1,"Ja",null,null,null,"Ja, compleet",null,null,null,"Ja",null,null,null,"Voldoende"]
[null,null,"Nee",null,null,null,"Ja, maar niet compleet",null,null,null,"Nee",null,null,null,"Onvoldoende"]
[null,null,"-",null,null,null,"Niet bijgevoegd. Opvragen"]
[null,2,"Niet eerder een verlening geweest"]
[null,null,"Wel eerder een verlening geweest",null,null,null,"C. Verplichte bijlage"]
[null,null,"-",null,null,null,"-",null,null,null,"Eindoordeel Beleid",null,null,null,"D4. Toekomstperspectief"]
[null,3,"Ja",null,null,null,"Ja",null,null,null,"-"]
[null,null,"Nee",null,null,null,"Nee",null,null,null,"Aanvraag toekennen",null,null,null,"-"]
[null,null,"-",null,null,null,null,null,null,null,"Aanvraag intrekken",null,null,null,"Ja"]
[null,4,"Ja",null,null,null,null,null,null,null,"Aanvraag afwijzen",null,null,null,"Nee"]
[null,null,"Nee",null,null,null,"B. Prioritering"]
[]
[null,null,null,null,null,null,"-"]
[null,"Afwijsredenen",null,null,null,null,"Ja"]
[null,"-",null,null,null,null,"Nee",null,null,null,"Op te vragen documenten"]
[null,"Geen bankverklaring",null,null,null,null,null,null,null,null,"-"]
[null,"Geen beeldbepalend /karakteristiek pand",null,null,null,null,"Totaal score",null,null,null,"Bankverklaring"]
[null,"Jaarcijfers niet compleet",null,null,null,null,null,null,null,null,"Jaarcijfers"]
[null,null,null,null,null,null,null,null,null,null,"Jaarcijfers overige entiteiten"]
[null,null,null,null,null,null,null,null,null,null,"Organogram"]
[]
[]
[]
[]
[]
[]
[]
[]
[]
[]
[null,"Tekstblokken weigeringsbrieven"]
["A","B"]
["-",1]
["Bankverklaring onvoldoende","De investeringen worden mede door bijdragen van derden gefinancierd. Uit de aangeleverde bankverklaring blijkt niet of onvoldoende dat de financier u de gevraagde financiering verstrekt. De subsidie wordt daarom conform artikel 8 lid 1 onder f van de Maatwerkregeling geweigerd.",null,null,null,null,null,null,null,null,null,null,1]
["Eigen geld onvoldoende","De investering wordt mede met eigen middelen gefinancierd. Uit de aangeleverde bankafschriften blijkt niet of onvoldoende dat u de benodigde financiering uit eigen middelen kunt betalen. De subsidie wordt daarom conform artikel 8 lid 1 onder f van de Maatwerkregeling geweigerd.",null,null,null,null,null,null,null,null,null,null,2]
["Fundering niet aangetoond","U geeft aan dat er sprake is van funderingsproblematiek bij uw bedrijfsgebouw van uw agrarische onderneming. Een beschrijving van deze funderingsproblematiek (bij voorkeur een deskundigenrapport, maar eventueel andere verklarende bouwkundige beschrijving van de funderingsschade) en/of een besluit van het IMG, NAM, NCG en TCMG over die funderingsschade ontbreekt. U komt dan ook niet in aanmerking voor de staffel 'funderingsproblematiek' van € 50.000 als bedoeld in artikel 7 lid 1 onder c van de Maatwerkregeling. Dit betekent dat het subsidiebedrag waarvoor u maximaal in aanmerking komt, met € 50.000 afneemt. Daardoor is onvoldoende duidelijk dat u beschikt over de financiële middelen om het investeringsproject uit te voeren. Wij weigeren daarom de subsidie conform artikel 8 lid 1 onder f van de Maatwerkregeling.",null,null,null,null,null,null,null,null,null,null,3]
["Geen beeldbepalend /karakteristiek","U geeft aan dat er sprake is van een karakteristiek/monumentaal/beeldbepalend bedrijfsgebouw van uw agarische onderneming. Uit de aangeleverde informatie blijkt niet of onvoldoende dat uw bedrijfsgebouw hieronder valt. Ons eigen onderzoek heeft dit ook niet of onvoldoende aangetoond. U komt dan ook niet in aanmerking voor de staffel 'karakteristiek pand' van € 50.000 van artikel 7 lid 1 onder b van de Maatwerkregeling. Dit betekent dat het subsidiebedrag waarvoor u maximaal in aanmerking komt, met € 50.000 afneemt. Daardoor is onvoldoende duidelijk dat u beschikt over de financiële middelen om het investeringsproject uit te voeren. Wij weigeren daarom de subsidie conform artikel 8 lid 1 onder f van de Maatwerkregeling.",null,null,null,null,null,null,null,null,null,null,4]
["Jaarcijfers niet compleet","De jaarcijfers van de onderneming zoals ingediend bij de subsidieaanvraag, zijn niet compleet. Hierdoor is het toekomstperspectief niet goed te beoordelen. De subsidie wordt daarom conform 8 lid 1 onder c en i van de Maatwerkregeling geweigerd.",null,null,null,null,null,null,null,null,null,null,5]
["Geen meerjarenbegroting","Uit de aangeleverde jaarcijfers blijkt dat uw onderneming een negatief eigen vermogen, een negatieve kasstroom of een negatieve marge (kasstroom minus aflossingen, vervangingsinvesteringen en privé-opnames) heeft. Hierdoor is de aanlevering van een meerjarenbegroting een vereiste. De meerjarenbegroting betreft de jaren (of het jaar) waarin u het investeringsproject realiseert en het direct daaropvolgend boekjaar. De meerjarenbegroting dient aan te tonen dat uw onderneming door de investering(en) een positieve marge krijgt. U heeft bij de door u ingediende subsidieaanvraag geen meerjarenbegroting toegevoegd. De subsidie wordt daarom conform 8 lid 1 onder c en i van de Maatwerkregeling geweigerd.",null,null,null,null,null,null,null,null,null,null,6]
["Jaarcijfers andere entiteiten ontbreken","U heeft naast uw onderneming waarvoor u subsidie aanvraagt ook een andere onderneming, of bent aandeelhouder of certificaathouder (meer dan 25% van de aandelen of zeggenschap) in een andere onderneming. U heeft echter geen of een onvolledig jaarverslag van elk van die andere ondernemingen toegevoegd. Nu de jaarverslagen ontbreken, kunnen wij niet beoordelen of de onderneming waarvoor u subsidie aanvraagt, als agrarische onderneming een reëel toekomstperspectief heeft. De subsidie wordt daarom conform 8 lid 1 onder c en i van de Maatwerkregeling geweigerd.",null,null,null,null,null,null,null,null,null,null,7]
["Jaarcijfers te oud","De door u aangeleverde jaarcijfers zijn bij indiening van de subsidie aanvraag ouder dan 2 jaar. Voor een goede analyse van het toekomstperspectief van uw onderneming hebben wij recente (eindbalans niet ouder dan 2 jaar) jaarcijfers nodig. Wij kunnen daarom onvoldoende beoordelen of uw agrarische onderneming een reëel toekomstperspectief heeft. De subsidie wordt daarom conform 8 lid 1 onder c en i van de Maatwerkregeling geweigerd.",null,null,null,null,null,null,null,null,null,null,8]
["Mestkelderschade niet gemeld","U geeft aan dat u de schade aan uw mestkelder, koelkelder of melkkelder heeft gemeld bij de IMG. U heeft bij uw aanvraag echter geen kopie van uw schademelding of een kopie van een schaderapport ingediend. U komt dan ook niet in aanmerking voor de staffel van € 100.000 van artikel 7 lid 1 onder a van de Maatwerkregeling. Dit betekent dat het subsidiebedrag waarvoor u maximaal in aanmerking komt, met € 100.000 afneemt. Daardoor is onvoldoende duidelijk dat u beschikt over de financiële middelen om het investeringsproject uit te voeren. Wij weigeren daarom de subsidie conform artikel 8 lid 1 onder f van de Maatwerkregeling.",null,null,null,null,null,null,null,null,null,null,9]
["Tabel 4 verantwoording investeringen ontbreekt of onvolledig","U heeft in tabel 4 (verantwoordingskolommen) van de exceltemplate niet of onvoldoende vermeld aan welke van de in de bijlage bij de Maatwerkregeling genoemde voorwaarden de onderdelen van uw investeringsproject voldoen. Zo kunnen wij niet nagaan of de investering(en) aan de voorwaarden van tabel 2 van de Bijlage 1 regeling maatwerk Agroprogramma voldoet. Wij weigeren daarom de subsidie conform artikel 8 lid 1 onder i van de Maatwerkregeling.",null,null,null,null,null,null,null,null,null,null,10]
["Start 9 maanden ontbreekt","In de door u ingediende subsidie aanvraag geeft u aan dat er binnen negen maanden na verlening van de subsidieaanvraag kan worden begonnen met de bouw. U heeft geen bewijs hiervan aan de subsidieaanvraag toegevoegd. Daarom wordt uw aanvraag ingedeeld in categorie [nummer] als bedoeld in artikel 12 van de Maatwerkregeling.",null,null,null,null,null,null,null,null,null,null,11,"-"]
["Geen offerte asbestverwijdering [INDIEN WEIGEREN]","U geeft aan dat er sprake is van asbestverwijdering bij een bedrijfsgebouw van uw agrarische onderneming. U heeft bij uw aanvraag geen offerte ingediend waaruit blijkt dat er meer dan 100 m2 asbesthoudend materiaal wordt verwijderd uit de bedrijfsgebouwen. U komt dan ook niet in aanmerking voor de staffel van maximaal € 40.000 van artikel 7 lid 2 onder a van de Maatwerkregeling. Dit betekent dat het subsidiebedrag waarvoor u maximaal in aanmerking komt, met € [BEDRAG ASBEST] afneemt. Daardoor is onvoldoende duidelijk dat u beschikt over de financiële middelen om het investeringsproject uit te voeren. Wij weigeren daarom de subsidie conform artikel 8 lid 1 onder f van de Maatwerkregeling.",null,null,null,null,null,null,null,null,null,null,12,"Geen offerte asbestverwijdering [INDIEN VERLENEN]","U geeft aan dat er sprake is van asbestverwijdering bij een bedrijfsgebouw van uw agrarische onderneming. U heeft bij uw aanvraag geen offerte ingediend waaruit blijkt dat er meer dan 100 m2 asbesthoudend materiaal wordt verwijderd uit de bedrijfsgebouwen. U komt dan ook niet in aanmerking voor de staffel van maximaal € 40.000 van artikel 7 lid 2 onder a van de Maatwerkregeling. Dit betekent dat het subsidiebedrag waarvoor u maximaal in aanmerking komt, met € [BEDRAG ASBEST] afneemt. Gelet op de door u ingediende financiele informatie zijn wij van oordeel dat u deze kosten zelf kan betalen. Daarom verlenen wij niet het aangevraagde subsidiebedrag van [AANGEVRAAGD BEDRAG], maar een subsidie van [VERLEENDE SUBSIDIEBEDRAG]."]
["Geen specificatie duurzame investeringen en /of verbetering van dierwelzijn [WEIGERING]","U geeft aan dat er sprake is van een duurzame investering. Er ontbreekt bij uw aanvraag een specificatie met prijsopgave of een (nog niet door u ondertekende) offerte met specificatie van duurzame investeringen of de investeringen in dierwelzijn. Wij kunnen daarom niet nagaan of er inderdaad sprake is van duurzaamheid. De subsidie wordt daarom conform artikel 7 lid 2 van de Maatwerkregeling geweigerd. U komt dan ook niet in aanmerking voor de staffel van maximaal € 40.000 van artikel 7 lid 2 onder b van de Maatwerkregeling. Dit betekent dat het subsidiebedrag waarvoor u maximaal in aanmerking komt, met € [BEDRAG ASBEST] afneemt. Daardoor is onvoldoende duidelijk dat u beschikt over de financiële middelen om het investeringsproject uit te voeren. Wij weigeren daarom de subsidie conform artikel 8 lid 1 onder f van de Maatwerkregeling.",null,null,null,null,null,null,null,null,null,null,13,"Geen specificatie duurzame investeringen en /of verbetering van dierwelzijn [VERLENING]","U geeft aan dat er sprake is van een duurzame investering. Er ontbreekt bij uw aanvraag een specificatie met prijsopgave of een (nog niet door u ondertekende) offerte met specificatie van duurzame investeringen of de investeringen in dierwelzijn. Wij kunnen daarom niet nagaan of er inderdaad sprake is van duurzaamheid. De subsidie wordt daarom conform artikel 7 lid 2 van de Maatwerkregeling geweigerd. U komt dan ook niet in aanmerking voor de staffel van maximaal € 40.000 van artikel 7 lid 2 onder b van de Maatwerkregeling. Dit betekent dat het subsidiebedrag waarvoor u maximaal in aanmerking komt, met € [BEDRAG ASBEST] afneemt. Gelet op de door u ingediende financiele informatie zijn wij van oordeel dat u deze kosten zelf kan betalen. Daarom verlenen wij niet het aangevraagde subsidiebedrag van [AANGEVRAAGD BEDRAG], maar een subsidie van [VERLEENDE SUBSIDIEBEDRAG]."]
["MKB verklaring niet juist ingevuld","De bij uw aanvraag ingediende MKB-verklaring is niet of onvolledig ingevuld. Daardoor is het niet duidelijk, of de onderneming waarvoor u subsidie aanvraagt een kmo is. Wij weigeren daarom de subsidie conform artikel 8 lid 1 onder d en 1 van de Maatwerkregeling.",null,null,null,null,null,null,null,null,null,null,14]
["Rollend materieel","U geeft aan dat er geen sprake is van een investering(en) in rollend materieel.  Echter (een gedeelte) van de machines vallen in de categorie rollend materieel. Dit omdat ze met een trekker verplaatst of rijdend gebruikt kunnen worden. Dit betekent dat zij aangemerkt worden als 'rollend materieel' zoals bedoeld in artikel 1 van de Maatwerkregeling. Daarom wordt uw aanvraag ingedeeld in categorie [nummer] als bedoeld in artikel 12 van de Maatwerkregeling.",null,null,null,null,null,null,null,null,null,null,15]
["Aanvrager behoort niet tot de doelgroep","Uw onderneming behoort niet tot de doelgroep van de Maatwerkregeling. De doelgroep is omschreven in artikel 3 van de Maatwerkregeling. In ieder geval behoort een agrarische onderneming tot de doelgroep, indien voldaan wordt aan de artikel 3 lid 2 onder a of onder b, van de Maatwerkregeling. ·        \n• Op grond van artikel 3 lid 2 onder a behoort een agrarische onderneming tot de doelgroep, indien een gebouw (niet woning) van die onderneming op of voor 6 november 2020 deel uitmaakt van de versterkingsopgave. Uit uw aanvraag blijkt niet, dat dit voor uw onderneming geldt. \n• Op grond van artikel 3 lid 2 onder b behoort een agarische onderneming tot de doelgroep, indien de agrarische onderneming gevestigd is in het aardbevingsgebied (zie artikel 1 onder a van de Maatwerkregeling) en minimaal één schademelding voor fysieke schade gedaan als bedoeld in artikel 2 van de Tijdelijke wet Groningen en door het Instituut is aangemerkt als 'speciaal dossier' of 'melding met agro kenmerk'.\n• Verder kan een agrarische onderneming die niet aan één van de in artikel 3 lid 2 genoemde criteria voldoet, onder omstandigheden toch tot de doelgroep van de Maatwerkregeling behoren. Namelijk als het ritme waarin die onderneming haar investeringen kon realiseren, naar ons oordeel in doorslaggevende mate vertraagd is als gevolg van de uitvoering van versterking of schadeherstel of een een besluit van het IMG op een verzoek om schadevergoeding. \n\nUit uw aanvraag blijkt niet, dat uw onderneming op grond van artikel 3 lid 1 tot de doelgroep behoort. Wij weigeren daarom de subsidie conform artikel 8 lid 1 onder b van de Maatwerkregeling.",null,null,null,null,null,null,null,null,null,null,16]
[]
[]
["Ontbrekende documenten"]
["-","-"]
["1. Schademelding","Een kopie van de schademelding en daaropvolgende ontvangstbevestiging van het IMG"]
["2. IMG","Kopie van het besluit van het IMG."]
["3. NAM","Kopie van de brief of ander document waarin dat is vastgelegd."]
["4. TCMG","Kopie van een document waarin staat of de vergoede schade inmiddels wel of niet is hersteld."]
["5. Hersteld","Een document waarin staat of de vergoede schade inmiddels wel of niet hersteld is."]
["6. NCG/versterking","Een kopie van dat versterkingsbesluit."]
["7. Fundering","Een beschrijving van de funderingsproblematiek (bij voorkeur een deskundigenrapport, maar eventueel andere verklarende bouwkundige beschrijving van de funderingsschade) of een besluit van het IMG over die funderingsschade. "]
["8. Kelder","Een kopie van uw melding"]
["9. Eigen geld","Bankafschriften waaruit blijkt dat uw onderneming over het benodigde eigen geld beschikt."]
["10. Bijdrage derden","Kopieën van de documenten waaruit blijkt dat die bijdragen beschikbaar zijn of komen."]
["11. Andere subsidies","Kopieën van die subsidiebeschikkingen of subsidieaanvragen."]
["12. Negatief EV","Een meerjarenbegroting over in ieder geval de jaren waarin het investeringsproject wordt uitgevoerd en het eerste boekjaar na realisatie van het investeringsproject. "]
["Andere onderneming \nAndere jaarrekeningen","Het meest recente jaarverslag van elk van die andere ondernemingen. "]
["Andere onderneming\nMeerdere entiteiten","Een volledig organogram en geconsolideerde jaarrekeningen. Daarnaast de jaarrekeningen van de entiteit waarin de agrarische activiteit plaatsvindt en de overige entiteiten (persoonlijke ondernemingen dan wel BV's)"]
["Andere onderneming \nOrganogram","Een organogram van alle ondernemingen waaruit de omvang van het belang of zeggenschap blijkt in procenten en de eigenaar van alle ondernemingen."]
["16. 9 maanden","Een kopie van de (nog niet door u getekende) offerte van de aannemer waaruit blijkt dat binnen hoeveel maanden na subsidieverlening gestart kan worden met de (ver)bouw. Op dit moment gaan we uit van subsidieverlening in februari 2025."]
["17. Omgevingsvergunning","Een kopie van de verleende omgevingsvergunning (zonder eventuele bijlagen zoals bouwtekeningen) of een korte toelichting van de activiteiten waarvoor de omgevingsvergunning aangevraagd is of gaat worden."]
["18. Asbest","Een (nog niet door u ondertekende) offerte van de asbestverwijderingswerkzaamheden die vermeldt welk soort en hoeveel asbesthoudend materiaal verwijderd wordt."]
["19. Duurzaamheid","Specificatie met prijsopgave of een (nog niet door u ondertekende) offerte met specificatie van duurzame investeringen of de investeringen in dierwelzijn."]
["20. Rollend","Specificatie met prijsopgave of een offerte met specificatie van het rollend materieel."]
["21. Bouw/verbouw","Een omschrijving van wat u gaat bouwen of verbouwen (soort bouwwerk, locatie op het perceel, afmetingen en volume, gebruikte materialen)"]
["22. Advieskosten","Een offerte of, als er geen offerte is, een specificatie van het soort en de hoogte van de advieskosten."]
["23. Machtiging","Een ingevuld en ondertekend machtigingsformulier."]